[Event "5th EKA IIFL Investment 2019"]
[Site "Mumbai"]
[Date "2019.12.30"]
[Round "1.8"]
[White "Raahul V S"]
[Black "Tukhaev, Adam"]
[Result "1/2-1/2"]
[ECO "A33"]
[WhiteElo "2252"]
[BlackElo "2552"]
[Annotator "ChessBase"]
[PlyCount "80"]
[EventDate "2019.12.30"]
[EventType "swiss"]
[EventCountry "IND"]
[SourceTitle "playchess.com"]
[Source "ChessBase"]
[SourceQuality "1"]
[TimeControl "40/5400+30:1800+30"]

1. c4 {[%emt 0:00:00]} c5 {[%emt 0:01:02]} 2. Nf3 {[%emt 0:00:00]} Nf6 {[%emt 0:00:10]} 3. Nc3 {[%emt 0:00:02]} e6 4. d4 {[%emt 0:02:26]} cxd4 {[%emt 0:00:25]} 5. Nxd4 {[%emt 0:00:05]} Nc6 {[%emt 0:00:53]} 6. g3 {[%emt 0:00:55]} d5 {[%emt 0:02:05]} 7. cxd5 {[%emt 0:00:57]} exd5 {[%emt 0:00:06]} 8. Bg2 {[%emt 0:00:59]} Bc5 {[%emt 0:00:15]} 9. Nb3 {[%emt 0:02:36]} Bb6 {[%emt 0:03:09]} 10. Nxd5 {[%emt 0:00:30]} Be6 {[%emt 0:00:30]} 11. e4 {[%emt 0:00:30]} Bg4 {[%emt 0:00:30]} 12. Qd3 {[%emt 0:00:30]} Nxd5 {[%emt 0:00:30]} 13. exd5 {[%emt 0:00:30]} O-O 14. O-O {[%emt 0:27:10]} Ne5 {[%emt 0:53:59]} 15. Qc3 {[%emt 0:02:13]} Re8 {[%emt 0:01:00]} 16. Be3 {[%emt 0:02:26]} Rc8 {[%emt 0:08:07]} 17. Bxb6 {[%emt 0:00:47]} axb6 {[%emt 0:00:30]} 18. Qd4 {[%emt 0:00:30]} Nf3+ {[%emt 0:00:30]} 19. Bxf3 {[%emt 0:00:30]} Bxf3 {[%emt 0:00:30]} 20. Rac1 {[%emt 0:00:30]} Rxc1 {[%emt 0:00:30]} 21. Rxc1 {[%emt 0:11:24]} Qd7 {[%emt 0:07:42]} 22. Nd2 {[%emt 0:01:38]} Bxd5 {[%emt 0:04:38]} 23. Nf1 {[%emt 0:02:03]} Qe6 24. Rc3 Bc6 {[%emt 0:01:48]} 25. Re3 {[%emt 0:00:41]} Qxa2 {[%emt 0:00:28]} 26. Rxe8+ {[%emt 0:00:54]} Bxe8 {[%emt 0:00:30]} 27. Qxb6 {[%emt 0:00:00]} Qd5 {[%emt 0:00:00]} 28. Ne3 Qe4 {[%emt 0:00:25]} 29. Qd8 {[%emt 0:01:02]} h6 {[%emt 0:00:06]} 30. Nd5 {[%emt 0:01:43]} Kh7 {[%emt 0:05:49]} 31. Ne7 Qe1+ {[%emt 0:01:03]} 32. Kg2 {[%emt 0:00:32]} Qe4+ {[%emt 0:00:00]} 33. Kg1 {[%emt 0:01:02]} Qe1+ {[%emt 0:02:16]} 34. Kg2 {[%emt 0:00:00]} Bc6+ {[%emt 0:00:06]} 35. Nxc6 Qe4+ 36. Kf1 {[%emt 0:05:41]} bxc6 {[%emt 0:01:19]} 37. Qd6 {[%emt 0:01:05]} f6 {[%emt 0:01:44]} 38. h4 Kg6 {[%emt 0:00:32]} 39. Qd7 {[%emt 0:02:42]} h5 {[%emt 0:00:00]} 40. b4 Qb1+ {[%emt 0:00:00]} 1/2-1/2

[Event "5th EKA IIFL Investment 2019"]
[Site "Mumbai"]
[Date "2019.12.30"]
[Round "1.9"]
[White "Chanda, Sandipan"]
[Black "Sapaev, Maksad"]
[Result "1/2-1/2"]
[ECO "E46"]
[WhiteElo "2545"]
[BlackElo "2250"]
[Annotator "ChessBase"]
[PlyCount "87"]
[EventDate "2019.12.30"]
[EventType "swiss"]
[EventCountry "IND"]
[SourceTitle "playchess.com"]
[Source "ChessBase"]
[SourceQuality "1"]
[TimeControl "40/5400+30:1800+30"]

1. d4 Nf6 2. c4 e6 3. Nc3 Bb4 4. e3 O-O 5. Bd2 {[%emt 0:00:20]} d5 {[%emt 0:01:40]} 6. Nf3 b6 {[%emt 0:00:00]} 7. cxd5 {[%emt 0:00:45]} exd5 {[%emt 0:00:14]} 8. Rc1 {[%emt 0:00:30]} Bb7 {[%emt 0:00:30]} 9. Bd3 {[%emt 0:00:30]} Bd6 {[%emt 0:00:30]} 10. Nb5 {[%emt 0:00:30]} c5 {[%emt 0:00:30]} 11. Nxd6 {[%emt 0:00:30]} Qxd6 {[%emt 0:00:30]} 12. O-O {[%emt 0:00:30]} Nc6 {[%emt 0:00:30]} 13. dxc5 {[%emt 0:00:30]} bxc5 {[%emt 0:00:30]} 14. Bc3 {[%emt 0:14:32]} d4 {[%emt 0:28:29]} 15. Bb5 {[%emt 0:00:30]} Ne5 {[%emt 0:00:30]} 16. Nxe5 {[%emt 0:38:40]} Qxe5 {[%emt 0:06:39]} 17. Bd2 {[%emt 0:01:08]} Rad8 {[%emt 0:22:52]} 18. Ba5 {[%emt 0:00:30]} Qg5 {[%emt 0:00:30]} 19. e4 {[%emt 0:00:30]} Nxe4 {[%emt 0:00:30]} 20. Bxd8 {[%emt 0:00:30]} Rxd8 {[%emt 0:00:30]} 21. f4 {[%emt 0:00:30]} Qg6 {[%emt 0:00:30]} 22. Bd3 {[%emt 0:00:30]} f5 {[%emt 0:00:30]} 23. Qb3+ {[%emt 0:00:30]} Bd5 {[%emt 0:00:30]} 24. Bc4 {[%emt 0:00:30]} Bxc4 {[%emt 0:00:30]} 25. Rxc4 {[%emt 0:00:30]} Qf7 {[%emt 0:00:30]} 26. Rd1 {[%emt 0:00:30]} h6 {[%emt 0:00:30]} 27. Rd3 {[%emt 0:00:30]} Kh7 {[%emt 0:00:30]} 28. Rc1 {[%emt 0:00:30]} Qg6 {[%emt 0:00:30]} 29. Qb7 {[%emt 0:00:30]} Rd6 {[%emt 0:00:30]} 30. b4 {[%emt 0:00:30]} Rb6 {[%emt 0:00:30]} 31. Qxa7 {[%emt 0:00:30]} Rb5 {[%emt 0:00:30]} 32. Qa3 {[%emt 0:00:30]} Rb6 {[%emt 0:00:30]} 33. h3 {[%emt 0:00:30]} Qe6 {[%emt 0:00:30]} 34. Rxc5 {[%emt 0:00:30]} Nxc5 {[%emt 0:00:30]} 35. bxc5 {[%emt 0:00:30]} Rb1+ {[%emt 0:00:30]} 36. Kh2 {[%emt 0:00:30]} Rf1 {[%emt 0:00:30]} 37. Rxd4 {[%emt 0:00:30]} Rf2 {[%emt 0:00:30]} 38. Rd3 {[%emt 0:00:30]} Qg6 {[%emt 0:00:30]} 39. Rg3 {[%emt 0:00:30]} Qf7 {[%emt 0:00:30]} 40. c6 {[%emt 0:00:30]} Rxa2 {[%emt 0:00:30]} 41. Qd6 {[%emt 0:34:52]} Ra1 42. Re3 {[%emt 0:05:23]} Ra2 {[%emt 0:35:11]} 43. Rg3 {[%emt 0:05:18]} Re2 {[%emt 0:00:26]} 44. Rd3 {[%emt 0:00:50]} 1/2-1/2

[Event "5th EKA IIFL Investment 2019"]
[Site "Mumbai"]
[Date "2019.12.30"]
[Round "1.10"]
[White "Varun, Vij"]
[Black "David, Alberto"]
[Result "1/2-1/2"]
[ECO "A80"]
[WhiteElo "1964"]
[BlackElo "2545"]
[Annotator "ChessBase"]
[PlyCount "112"]
[EventDate "2019.12.30"]
[EventType "swiss"]
[EventCountry "IND"]
[SourceTitle "playchess.com"]
[Source "ChessBase"]
[SourceQuality "1"]
[TimeControl "40/5400+30:1800+30"]

1. d4 f5 2. Nc3 d5 3. Bf4 Nf6 4. e3 a6 5. Nf3 e6 6. Bd3 c5 7. dxc5 Bxc5 8. O-O O-O 9. Ne2 Nc6 10. c4 Nb4 11. a3 Nxd3 12. Qxd3 Bd7 13. Ne5 Rc8 14. Nxd7 Qxd7 15. Rfd1 Qf7 16. cxd5 Nxd5 17. Nc3 Nxf4 18. exf4 Qf6 19. Qd7 Rb8 20. Re1 Rfe8 21. Re5 Rbd8 22. Qxb7 Bd4 23. Re2 Bxc3 24. bxc3 Qxc3 25. Qb2 Rd3 26. Qxc3 Rxc3 27. g3 Kf7 28. Re5 Rb8 29. Ra5 Rb6 30. Re1 g6 31. Rd1 Ke7 32. Rd2 Rcc6 33. Kf1 Rb1+ 34. Ke2 Rb3 35. h4 h6 36. Ra4 Kf6 37. Ra5 g5 38. hxg5+ hxg5 39. fxg5+ Kxg5 40. Kf1 Kf6 41. Re2 Rb1+ 42. Kg2 Rd1 43. Ra4 Rd3 44. Ra5 Rdc3 45. f3 R3c5 46. Ra4 Rc4 47. Ra5 Rd4 48. Kf2 Rd3 49. Kg2 Kf7 50. Ra4 Rcc3 51. Rxa6 Rxf3 52. Rexe6 Rxg3+ 53. Kf2 Rcf3+ 54. Ke2 Rxa3 55. Rf6+ Kg7 56. Rxa3 Rxa3 1/2-1/2

[Event "5th EKA IIFL Investment 2019"]
[Site "Mumbai"]
[Date "2019.12.30"]
[Round "1.11"]
[White "Gholami, Aryan"]
[Black "Panesar Vedant"]
[Result "1-0"]
[ECO "A05"]
[WhiteElo "2541"]
[BlackElo "2247"]
[Annotator "ChessBase"]
[PlyCount "53"]
[EventDate "2019.12.30"]
[EventType "swiss"]
[EventCountry "IND"]
[SourceTitle "playchess.com"]
[Source "ChessBase"]
[SourceQuality "1"]
[TimeControl "40/5400+30:1800+30"]

1. Nf3 {[%emt 0:00:00]} Nf6 {[%emt 0:00:21]} 2. b3 {[%emt 0:03:06]} d5 {[%emt 0:03:33]} 3. Bb2 {[%emt 0:00:18]} e6 {[%emt 0:00:09]} 4. e3 {[%emt 0:00:07]} Be7 {[%emt 0:00:33]} 5. c4 {[%emt 0:05:30]} O-O {[%emt 0:01:15]} 6. Be2 {[%emt 0:00:08]} c5 {[%emt 0:01:01]} 7. Nc3 {[%emt 0:05:27]} Nc6 {[%emt 0:00:40]} 8. cxd5 {[%emt 0:00:17]} Nxd5 {[%emt 0:01:48]} 9. Ne4 {[%emt 0:01:23]} b6 {[%emt 0:03:57]} 10. Qc2 {[%emt 0:05:07]} Ncb4 {[%emt 0:06:22]} 11. Qb1 {[%emt 0:00:14]} Ba6 {[%emt 0:00:42]} 12. Bxa6 {[%emt 0:00:13]} Nxa6 {[%emt 0:00:06]} 13. a3 {[%emt 0:00:55]} h6 {[%emt 0:17:14]} 14. g4 {[%emt 0:13:25]} Nf6 {[%emt 0:13:36]} 15. Rg1 {[%emt 0:01:23]} Nxe4 {[%emt 0:03:29]} 16. Qxe4 {[%emt 0:00:08]} Bf6 {[%emt 0:00:05]} 17. Bxf6 {[%emt 0:05:57]} Qxf6 {[%emt 0:00:29]} 18. Ke2 {[%emt 0:00:14]} g6 {[%emt 0:13:08]} 19. Qb7 {[%emt 0:01:10]} e5 {[%emt 0:02:50]} 20. g5 {[%emt 0:06:08]} hxg5 {[%emt 0:00:14]} 21. Qxa6 {[%emt 0:00:16]} g4 {[%emt 0:00:38]} 22. Ne1 {[%emt 0:00:25]} Qh4 {[%emt 0:03:40]} 23. Qc4 {[%emt 0:00:27]} Qxh2 {[%emt 0:00:57]} 24. Rxg4 {[%emt 0:02:13]} Qh5 {[%emt 0:01:03]} 25. Nf3 {[%emt 0:00:13]} b5 {[%emt 0:01:38]} 26. Qe4 {[%emt 0:00:06]} Rae8 {[%emt 0:02:01]} 27. Rh4 {[%emt 0:00:12]} 1-0

[Event "5th EKA IIFL Investment 2019"]
[Site "Mumbai"]
[Date "2019.12.30"]
[Round "1.12"]
[White "Ojas Kulkarni"]
[Black "Deepan Chakkravarthy J."]
[Result "0-1"]
[ECO "A61"]
[WhiteElo "2246"]
[BlackElo "2535"]
[Annotator "ChessBase"]
[PlyCount "52"]
[EventDate "2019.12.30"]
[EventType "swiss"]
[EventCountry "IND"]
[SourceTitle "playchess.com"]
[Source "ChessBase"]
[SourceQuality "1"]
[TimeControl "40/5400+30:1800+30"]

1. d4 {[%emt 0:00:00]} Nf6 {[%emt 0:00:00]} 2. c4 {[%emt 0:00:18]} c5 {[%emt 0:00:41]} 3. d5 {[%emt 0:03:30]} e6 {[%emt 0:00:09]} 4. Nc3 {[%emt 0:00:40]} exd5 {[%emt 0:00:04]} 5. cxd5 {[%emt 0:00:05]} d6 {[%emt 0:00:09]} 6. Nf3 {[%emt 0:00:09]} g6 {[%emt 0:00:06]} 7. Bf4 {[%emt 0:00:05]} Bg7 {[%emt 0:00:10]} 8. Qa4+ {[%emt 0:05:17]} Bd7 {[%emt 0:01:20]} 9. Qb3 {[%emt 0:00:07]} Qc7 {[%emt 0:05:10]} 10. e4 {[%emt 0:00:36]} O-O {[%emt 0:00:11]} 11. Be2 {[%emt 0:08:21]} Na6 {[%emt 0:28:36]} 12. Nd2 {[%emt 0:10:09]} Rfb8 {[%emt 0:13:57]} 13. Nc4 {[%emt 0:04:57]} Ne8 {[%emt 0:01:03]} 14. e5 {[%emt 0:00:27]} dxe5 {[%emt 0:09:09]} 15. d6 {[%emt 0:01:33]} Nxd6 {[%emt 0:00:30]} 16. Nd5 {[%emt 0:22:20]} Qd8 {[%emt 0:00:04]} 17. Nxd6 {[%emt 0:00:09]} Be6 {[%emt 0:00:05]} 18. O-O-O {[%emt 0:00:08]} exf4 {[%emt 0:08:20]} 19. Bc4 {[%emt 0:04:00]} Bd4 {[%emt 0:01:44]} 20. Nb5 {[%emt 0:04:34]} Bxd5 {[%emt 0:03:13]} 21. Bxd5 {[%emt 0:00:07]} Qf6 {[%emt 0:00:09]} 22. Kb1 {[%emt 0:02:18]} Rd8 {[%emt 0:02:39]} 23. Nxd4 {[%emt 0:04:00]} cxd4 {[%emt 0:00:08]} 24. Qxb7 {[%emt 0:00:05]} Rab8 {[%emt 0:02:31]} 25. Bxf7+ {[%emt 0:00:07]} Kf8 {[%emt 0:01:18]} 26. Qxa7 {[%emt 0:00:10]} Ra8 {[%emt 0:02:44]} 0-1

[Event "5th EKA IIFL Investment 2019"]
[Site "Mumbai"]
[Date "2019.12.30"]
[Round "1.13"]
[White "Stupak, Kirill"]
[Black "Lokesh, N.."]
[Result "1-0"]
[ECO "D35"]
[WhiteElo "2529"]
[BlackElo "2240"]
[Annotator "ChessBase"]
[PlyCount "101"]
[EventDate "2019.12.30"]
[EventType "swiss"]
[EventCountry "IND"]
[SourceTitle "playchess.com"]
[Source "ChessBase"]
[SourceQuality "1"]
[TimeControl "40/5400+30:1800+30"]

1. d4 {[%emt 0:00:00]} Nf6 {[%emt 0:04:10]} 2. c4 {[%emt 0:00:00]} e6 {[%emt 0:00:07]} 3. Nc3 {[%emt 0:00:00]} d5 {[%emt 0:00:16]} 4. cxd5 {[%emt 0:00:00]} exd5 {[%emt 0:00:05]} 5. Bg5 {[%emt 0:00:00]} Be7 {[%emt 0:02:29]} 6. e3 {[%emt 0:00:00]} O-O {[%emt 0:02:35]} 7. Bd3 {[%emt 0:02:30]} Nbd7 {[%emt 0:00:07]} 8. Qc2 {[%emt 0:00:26]} b6 {[%emt 0:03:14]} 9. Nf3 {[%emt 0:12:22]} Bb7 {[%emt 0:00:09]} 10. Bf4 {[%emt 0:08:07]} c5 {[%emt 0:03:33]} 11. O-O {[%emt 0:00:44]} g6 {[%emt 0:18:29]} 12. Rfd1 {[%emt 0:11:23]} Rc8 {[%emt 0:04:37]} 13. Be2 {[%emt 0:08:44]} Ne4 {[%emt 0:03:48]} 14. dxc5 {[%emt 0:08:48]} Rxc5 {[%emt 0:05:32]} 15. Nd4 {[%emt 0:02:08]} Bh4 {[%emt 0:05:19]} 16. Rf1 {[%emt 0:16:01]} Re8 {[%emt 0:13:02]} 17. Qa4 {[%emt 0:08:01]} Nxc3 {[%emt 0:05:18]} 18. bxc3 {[%emt 0:00:03]} a6 {[%emt 0:00:15]} 19. Qb4 {[%emt 0:04:27]} Be7 {[%emt 0:24:17]} 20. Qb2 {[%emt 0:00:28]} Bf8 {[%emt 0:01:44]} 21. a4 {[%emt 0:01:41]} Bc8 {[%emt 0:00:46]} 22. Rab1 {[%emt 0:01:48]} Qf6 {[%emt 0:00:33]} 23. Rfd1 {[%emt 0:02:25]} h5 {[%emt 0:00:09]} 24. h3 {[%emt 0:00:37]} Bg7 {[%emt 0:00:20]} 25. Bf3 {[%emt 0:03:42]} Ra5 {[%emt 0:00:50]} 26. Bc7 {[%emt 0:02:21]} Rxa4 {[%emt 0:00:42]} 27. Bxd5 {[%emt 0:00:27]} b5 {[%emt 0:00:27]} 28. c4 {[%emt 0:00:30]} Nb6 {[%emt 0:00:22]} 29. Bxb6 {[%emt 0:01:12]} Qxb6 {[%emt 0:00:13]} 30. cxb5 {[%emt 0:00:06]} Bxd4 {[%emt 0:00:50]} 31. Qb3 {[%emt 0:01:26]} Bxe3 {[%emt 0:00:35]} 32. Bxf7+ {[%emt 0:01:13]} Kf8 {[%emt 0:00:33]} 33. Bxe8 {[%emt 0:00:18]} Bxf2+ {[%emt 0:00:14]} 34. Kh1 {[%emt 0:00:26]} Rf4 {[%emt 0:00:20]} 35. Bd7 {[%emt 0:00:51]} Bb7 {[%emt 0:00:34]} 36. Bc6 {[%emt 0:01:31]} axb5 {[%emt 0:00:32]} 37. Bxb7 {[%emt 0:02:22]} Qxb7 {[%emt 0:00:11]} 38. Qe6 {[%emt 0:00:06]} Qe4 {[%emt 0:00:52]} 39. Rd8+ {[%emt 0:01:37]} Kg7 {[%emt 0:00:07]} 40. Qg8+ {[%emt 0:00:00]} Kh6 {[%emt 0:00:00]} 41. Rbd1 {[%emt 0:23:02]} Bb6 {[%emt 0:25:17]} 42. Re8 {[%emt 0:03:40]} Qc4 {[%emt 0:03:10]} 43. Qh8+ {[%emt 0:00:35]} Kg5 {[%emt 0:00:04]} 44. Qe5+ {[%emt 0:00:31]} Kh4 {[%emt 0:01:34]} 45. Qe7+ {[%emt 0:04:44]} g5 {[%emt 0:01:39]} 46. g3+ {[%emt 0:00:20]} Kxg3 {[%emt 0:01:39]} 47. Qxg5+ {[%emt 0:00:01]} Kxh3 {[%emt 0:00:58]} 48. Qxh5+ {[%emt 0:00:15]} Kg3 {[%emt 0:00:30]} 49. Qh2+ {[%emt 0:00:14]} Kg4 {[%emt 0:00:09]} 50. Qg2+ {[%emt 0:00:17]} Kf5 {[%emt 0:00:28]} 51. Rd5+ {[%emt 0:00:01]} 1-0

[Event "5th EKA IIFL Investment 2019"]
[Site "Mumbai"]
[Date "2019.12.30"]
[Round "1.14"]
[White "Navalgund, Niranjan"]
[Black "Debashis, Das"]
[Result "1-0"]
[ECO "A40"]
[WhiteElo "2231"]
[BlackElo "2523"]
[Annotator "ChessBase"]
[PlyCount "79"]
[EventDate "2019.12.30"]
[EventType "swiss"]
[EventCountry "IND"]
[SourceTitle "playchess.com"]
[Source "ChessBase"]
[SourceQuality "1"]
[TimeControl "40/5400+30:1800+30"]

1. d4 {[%emt 0:00:00]} e6 {[%emt 0:00:09]} 2. c4 {[%emt 0:00:00]} b6 {[%emt 0:00:22]} 3. e4 {[%emt 0:04:31]} Bb7 {[%emt 0:00:06]} 4. Bd3 {[%emt 0:00:05]} Nc6 {[%emt 0:00:10]} 5. Nf3 {[%emt 0:00:23]} Nb4 {[%emt 0:00:19]} 6. Nc3 {[%emt 0:00:38]} Nxd3+ {[%emt 0:00:16]} 7. Qxd3 {[%emt 0:00:02]} d6 8. Bg5 {[%emt 0:07:27]} Qd7 {[%emt 0:01:41]} 9. O-O {[%emt 0:02:47]} Ne7 {[%emt 0:04:28]} 10. Nd2 {[%emt 0:04:05]} h6 {[%emt 0:02:48]} 11. Be3 {[%emt 0:01:32]} g6 {[%emt 0:00:28]} 12. d5 {[%emt 0:01:55]} Bg7 {[%emt 0:03:25]} 13. f4 {[%emt 0:02:10]} O-O {[%emt 0:01:36]} 14. dxe6 {[%emt 0:11:21]} fxe6 {[%emt 0:00:17]} 15. Bd4 {[%emt 0:00:28]} e5 {[%emt 0:02:51]} 16. Bxe5 {[%emt 0:02:28]} Nc6 {[%emt 0:01:46]} 17. Bxg7 {[%emt 0:01:24]} Qxg7 {[%emt 0:00:05]} 18. Nd5 {[%emt 0:02:58]} Rf7 {[%emt 0:00:56]} 19. b3 {[%emt 0:06:27]} Raf8 {[%emt 0:01:34]} 20. Rae1 {[%emt 0:02:15]} a5 {[%emt 0:02:18]} 21. a3 {[%emt 0:07:10]} Kh8 {[%emt 0:07:58]} 22. Re3 {[%emt 0:12:59]} Nd4 {[%emt 0:05:31]} 23. g3 {[%emt 0:05:35]} Bc8 {[%emt 0:03:42]} 24. Nf3 {[%emt 0:02:41]} Nc6 {[%emt 0:01:23]} 25. Qc3 {[%emt 0:02:43]} Kh7 {[%emt 0:03:06]} 26. Qxg7+ {[%emt 0:02:55]} Kxg7 {[%emt 0:00:08]} 27. Kg2 {[%emt 0:01:48]} Re8 {[%emt 0:04:02]} 28. h3 {[%emt 0:00:30]} Bb7 {[%emt 0:09:21]} 29. Rfe1 {[%emt 0:01:52]} Bc8 {[%emt 0:03:19]} 30. g4 {[%emt 0:02:18]} Bb7 {[%emt 0:02:47]} 31. Kg3 {[%emt 0:00:25]} Bc8 {[%emt 0:00:05]} 32. h4 {[%emt 0:04:09]} Ba6 {[%emt 0:02:49]} 33. e5 {[%emt 0:01:51]} Re6 {[%emt 0:07:42]} 34. exd6 {[%emt 0:00:19]} Rxd6 {[%emt 0:00:05]} 35. Ne5 {[%emt 0:00:20]} Nxe5 {[%emt 0:06:18]} 36. fxe5 {[%emt 0:00:02]} Re6 {[%emt 0:00:10]} 37. Nf4 {[%emt 0:00:43]} Rc6 {[%emt 0:02:17]} 38. e6 {[%emt 0:00:37]} Re7 {[%emt 0:01:30]} 39. Nd5 {[%emt 0:01:12]} Re8 {[%emt 0:00:03]} 40. Rf3 1-0

[Event "5th EKA IIFL Investment 2019"]
[Site "Mumbai"]
[Date "2019.12.30"]
[Round "1.15"]
[White "Rios, Cristhian Camilo"]
[Black "Subhayan Kundu"]
[Result "1/2-1/2"]
[ECO "A85"]
[WhiteElo "2505"]
[BlackElo "2222"]
[Annotator "ChessBase"]
[PlyCount "80"]
[EventDate "2019.12.30"]
[EventType "swiss"]
[EventCountry "IND"]
[SourceTitle "playchess.com"]
[Source "ChessBase"]
[SourceQuality "1"]
[TimeControl "40/5400+30:1800+30"]

1. d4 {[%emt 0:00:00]} f5 {[%emt 0:12:50]} 2. c4 {[%emt 0:00:00]} Nf6 {[%emt 0:00:24]} 3. Nc3 {[%emt 0:00:13]} d6 {[%emt 0:00:28]} 4. Bg5 {[%emt 0:00:28]} Nbd7 {[%emt 0:00:16]} 5. Qc2 {[%emt 0:00:12]} g6 {[%emt 0:01:04]} 6. Nh3 {[%emt 0:00:08]} e5 {[%emt 0:05:00]} 7. dxe5 {[%emt 0:00:12]} dxe5 {[%emt 0:12:53]} 8. O-O-O {[%emt 0:01:47]} c6 {[%emt 0:02:43]} 9. e4 {[%emt 0:02:55]} h6 {[%emt 0:03:03]} 10. Bxf6 {[%emt 0:01:05]} Qxf6 {[%emt 0:00:06]} 11. f4 {[%emt 0:03:23]} Nc5 {[%emt 0:09:25]} 12. Bd3 {[%emt 0:10:46]} Be7 {[%emt 0:01:39]} 13. Rhe1 {[%emt 0:05:54]} O-O {[%emt 0:02:37]} 14. fxe5 {[%emt 0:06:06]} Qh4 {[%emt 0:00:21]} 15. exf5 {[%emt 0:00:53]} Nxd3+ {[%emt 0:00:36]} 16. Qxd3 {[%emt 0:00:09]} Bxf5 {[%emt 0:00:11]} 17. Qd4 {[%emt 0:17:12]} Rad8 {[%emt 0:05:59]} 18. Qxh4 {[%emt 0:01:46]} Bxh4 {[%emt 0:00:05]} 19. Rf1 {[%emt 0:01:19]} Bxh3 {[%emt 0:13:41]} 20. gxh3 {[%emt 0:00:07]} Rxf1 {[%emt 0:00:17]} 21. Rxf1 {[%emt 0:00:08]} Re8 {[%emt 0:00:12]} 22. Ne4 {[%emt 0:02:02]} Rxe5 {[%emt 0:01:27]} 23. Nd6 {[%emt 0:00:08]} b5 {[%emt 0:11:56]} 24. Rf3 {[%emt 0:01:12]} Be7 {[%emt 0:02:48]} 25. Nf7 {[%emt 0:00:40]} Rh5 {[%emt 0:03:48]} 26. b3 {[%emt 0:01:36]} Kg7 {[%emt 0:00:14]} 27. Kd2 {[%emt 0:03:19]} bxc4 28. bxc4 {[%emt 0:00:07]} Ra5 {[%emt 0:04:09]} 29. a4 Rxa4 {[%emt 0:02:11]} 30. Ne5 {[%emt 0:00:14]} Bf6 {[%emt 0:00:31]} 31. Nxc6 {[%emt 0:00:07]} a6 {[%emt 0:01:30]} 32. c5 Rc4 {[%emt 0:01:11]} 33. Nb8 {[%emt 0:03:37]} Rxc5 34. Nxa6 {[%emt 0:00:21]} Rc4 {[%emt 0:01:10]} 35. Kd3 {[%emt 0:00:40]} Rc3+ {[%emt 0:01:29]} 36. Ke2 {[%emt 0:00:40]} Rc2+ {[%emt 0:00:33]} 37. Kd3 {[%emt 0:00:15]} Rxh2 {[%emt 0:00:07]} 38. Nc7 {[%emt 0:00:12]} Ra2 {[%emt 0:01:20]} 39. Ne8+ Kf7 40. Rxf6+ Kxe8 1/2-1/2

[Event "5th EKA IIFL Investment 2019"]
[Site "Mumbai"]
[Date "2019.12.30"]
[Round "1.16"]
[White "Wagh Suyog"]
[Black "Yudin, Sergei"]
[Result "0-1"]
[ECO "D30"]
[WhiteElo "2219"]
[BlackElo "2497"]
[Annotator "ChessBase"]
[PlyCount "60"]
[EventDate "2019.12.30"]
[EventType "swiss"]
[EventCountry "IND"]
[SourceTitle "playchess.com"]
[Source "ChessBase"]
[SourceQuality "1"]
[TimeControl "40/5400+30:1800+30"]

1. d4 {[%emt 0:00:00]} d5 {[%emt 0:00:18]} 2. c4 {[%emt 0:00:00]} e6 {[%emt 0:00:08]} 3. Nf3 {[%emt 0:02:46]} c6 {[%emt 0:00:07]} 4. Qc2 {[%emt 0:00:31]} dxc4 {[%emt 0:00:31]} 5. Qxc4 {[%emt 0:00:08]} Nf6 {[%emt 0:00:05]} 6. g3 {[%emt 0:02:15]} b5 {[%emt 0:00:44]} 7. Qb3 {[%emt 0:00:01]} Bb7 {[%emt 0:00:08]} 8. Bg2 {[%emt 0:00:01]} Nbd7 {[%emt 0:00:17]} 9. O-O {[%emt 0:00:07]} a6 {[%emt 0:00:26]} 10. Ne5 {[%emt 0:00:01]} Nxe5 {[%emt 0:02:18]} 11. dxe5 {[%emt 0:00:01]} Nd7 {[%emt 0:00:08]} 12. Nc3 {[%emt 0:00:15]} Be7 {[%emt 0:01:11]} 13. Ne4 {[%emt 0:12:02]} Qb8 {[%emt 0:08:49]} 14. Rd1 {[%emt 0:20:08]} c5 {[%emt 0:07:03]} 15. a4 {[%emt 0:06:45]} c4 {[%emt 0:10:22]} 16. Qc3 {[%emt 0:14:35]} Nc5 {[%emt 0:07:40]} 17. Nd6+ {[%emt 0:24:26]} Bxd6 {[%emt 0:00:22]} 18. exd6 {[%emt 0:00:05]} O-O {[%emt 0:00:05]} 19. axb5 {[%emt 0:00:36]} Bxg2 {[%emt 0:03:06]} 20. Qxc4 {[%emt 0:09:27]} Rc8 {[%emt 0:03:04]} 21. Bf4 {[%emt 0:03:44]} Bd5 {[%emt 0:01:33]} 22. Qb4 {[%emt 0:02:00]} Qxb5 {[%emt 0:02:50]} 23. Qxb5 {[%emt 0:01:03]} axb5 {[%emt 0:00:07]} 24. f3 {[%emt 0:00:25]} Nd7 {[%emt 0:02:15]} 25. e4 {[%emt 0:00:12]} Bb7 {[%emt 0:02:04]} 26. Rxa8 {[%emt 0:00:20]} Rxa8 {[%emt 0:00:56]} 27. Kf2 {[%emt 0:00:08]} f6 {[%emt 0:00:23]} 28. Be3 {[%emt 0:00:08]} e5 {[%emt 0:00:58]} 29. Ke2 {[%emt 0:00:23]} Kf7 {[%emt 0:00:11]} 30. Kd3 {[%emt 0:00:05]} Rc8 {[%emt 0:01:56]} 0-1